fUSD/lending_fUSD_20260331
["ID","MTS","AMOUNT","RATE_DAILY","PERIOD"]
[419169422,1774997438734,-17001.16,0.00014741,2]
[419169423,1774997438744,-1000.0,0.000148,2]
[419169424,1774997438754,-1081.27399968,0.00014833,2]
[419169425,1774997438763,-194.2981,0.00015,7]
[419169426,1774997438773,-779.0,0.00015,2]
[419169427,1774997438783,-502.0,0.00015078,3]
[419169428,1774997438793,-1081.27399968,0.000151,2]
[419169429,1774997438803,-2000.0,0.00015315,2]
[419169430,1774997438812,-1081.27399968,0.00015366,2]
[419169431,1774997438822,-168.0,0.0001537,2]
[419169432,1774997438833,-173.26,0.00015525,2]
[419169433,1774997438844,-168.0,0.00015551,2]
[419169434,1774997438854,-1081.27399968,0.00015633,2]
[419169435,1774997438864,-423.71407767,0.0001568,2]
[419169436,1774997438875,-2821.4310295,0.00015686,2]
[419169437,1774997438885,-500.0,0.00015726,2]
[419169438,1774997438895,-500.0,0.00015726,2]
[419169439,1774997438905,-500.0,0.00015726,2]
[419169440,1774997438916,-500.0,0.00015726,2]
[419169441,1774997438926,-500.0,0.00015726,2]
[419169442,1774997438936,-500.0,0.00015726,2]
[419169443,1774997438946,-500.0,0.00015726,2]
[419169444,1774997438956,-505.41981536,0.00015726,2]
[419169445,1774997438966,-500.0,0.00015726,2]
[419169446,1774997438975,-500.0,0.00015726,2]
[419169447,1774997438984,-500.0,0.00015726,2]
[419169448,1774997438994,-500.0,0.00015726,2]
[419169449,1774997439003,-500.0,0.00015726,2]
[419169450,1774997439012,-500.0,0.00015726,2]
[419169451,1774997439022,-500.0,0.00015726,2]
[419169452,1774997439031,-500.0,0.00015726,2]
[419169453,1774997439042,-486.29760765,0.00015726,2]
[419169454,1774997439051,-500.0,0.00015726,2]
[419169455,1774997439067,-500.0,0.00015726,2]
[419169456,1774997439077,-500.0,0.00015726,2]
[419169457,1774997439086,-500.0,0.00015726,2]
[419169458,1774997439096,-526.45929112,0.00015726,2]
[419169459,1774997439106,-500.0,0.00015726,2]
[419169460,1774997439116,-500.0,0.00015726,2]
[419169461,1774997439126,-500.0,0.00015726,2]
[419169462,1774997439136,-500.0,0.00015726,2]
[419169463,1774997439146,-500.0,0.00015726,2]
[419169464,1774997439155,-500.0,0.00015726,2]
[419169465,1774997439165,-500.0,0.00015726,2]
[419169466,1774997439174,-500.0,0.00015726,2]
[419169467,1774997439184,-299.5230674,0.00015726,2]
[419169468,1774997439194,-576.0,0.00015781,2]
[419169469,1774997439204,-1000.0,0.000158,2]
[419169470,1774997439215,-1000.0,0.00015801,2]
[419169471,1774997439227,-1000.0,0.00015801,2]
[419169472,1774997439238,-1568.0,0.00015869,2]
[419169473,1774997439248,-10000.0,0.000159,2]
[419169474,1774997439258,-259.54972894,0.000159,2]
[419169475,1774997439268,-1081.27399968,0.000159,2]
[419169476,1774997439278,-224.32485354,0.000159,2]
[419169477,1774997439289,-323.9731055,0.000159,2]
[419169478,1774997439298,-2141.2202214,0.000159,2]
[419169479,1774997439307,-168.0,0.00015923,2]
[419169480,1774997439317,-357.2823536,0.00015973,2]
[419169481,1774997439327,-222.96972885,0.00015973,2]
[419169482,1774997439336,-238.07579298,0.00015985,2]
[419169483,1774997439346,-155.341,0.00015999,2]
[419169484,1774997439356,-31103.86278474,0.00016,2]
[419169485,1774997439366,-1825.17913113,0.00016,2]
[419169486,1774997439376,-1088499.21183221,0.00016,2]
[419169487,1774997439386,-353772.11710689,0.00016,2]
[419169488,1774997439397,-150.0,0.00016,2]
[419169489,1774997439407,-11662.81819707,0.00016,2]
[419169490,1774997439416,-150.0,0.00016,2]
[419169491,1774997439426,-70535.40373526,0.00016,2]
[419169492,1774997439436,-775602.13179288,0.00016,2]
[419169493,1774997440933,-572.79194239,0.00016,2]
[419169494,1774997440945,-1949.3134141,0.00016,2]
[419169495,1774997440956,-1100.4559696,0.00016,2]
[419169496,1774997440968,-3520.45283141,0.00016,2]
[419169497,1774997441416,-1810.00289802,0.00016,2]
[419169498,1774997441503,-13602.4,0.00016,2]
[419169499,1774997441515,-534.0,0.00016,2]
[419169500,1774997441526,-1486.42542565,0.00016,2]
[419169501,1774997441542,-275.77490633,0.00016,2]
[419169505,1774997442663,-1145.538314,0.00016,2]
[419169506,1774997442716,-422.39513532,0.00016,2]
[419169507,1774997442769,-1331.38482477,0.00016,2]
[419169508,1774997442781,-12384.17355889,0.00016,2]
[419169509,1774997442875,-360032.46094267,0.00016,2]
[419169510,1774997442887,-188223.69639539,0.00016,2]
[419169511,1774997442899,-1264.0741046,0.00016,2]
[419169529,1774997445599,-1712.11696904,0.00016,2]
[419169530,1774997445610,-2293.72232384,0.00016,2]
[419169531,1774997445864,-955.11354241,0.00016,2]
[419169532,1774997445876,-104327.26251832,0.00016,2]
[419169533,1774997445970,-800.6768,0.00016,2]
[419169534,1774997446025,-459.58986104,0.00016,2]
[419169564,1774997724793,4051.75,0.0001435,10]
[419169568,1774997878351,2328.02,6.411e-05,2]
[419169569,1774997878545,2328.02,6.748e-05,2]
[419169570,1774997878963,343.97,7.086e-05,2]
[419169571,1774997878986,1984.05,7.086e-05,2]
[419169572,1774997879170,2328.02,7.423e-05,2]
[419169573,1774997879378,2328.02,7.76e-05,2]
[419169574,1774997879580,1070.43665302,8.098e-05,2]
[419169575,1774997879605,1257.58334698,8.098e-05,2]
[419169576,1774997879979,2328.02,8.435e-05,2]
[419169578,1774997907586,895.61,8.1e-05,2]
[419169579,1774997930908,251.6785,0.000141,12]
[419169580,1774998001876,251.653,0.00014,12]
[419169581,1774998072686,251.6274,0.000133,12]
[419169583,1774998143509,251.6018,0.000133,12]
[419169584,1774998152556,855.59,8.363e-05,2]
[419169585,1774998215003,251.5762,0.00013,12]
[419169586,1774998286377,251.5506,0.00013,12]
[419169588,1774998421475,251.5249,0.00013,12]
[419169589,1774998428125,-503.96,8.586e-05,2]
[419169590,1774998428147,-2328.02,8.773e-05,2]
[419169591,1774998428169,-1539.29092247,9.11e-05,2]
[419169594,1774998494991,251.4993,0.00013,12]
[419169598,1774998545093,-900.0,8.548e-05,2]
[419169599,1774998545116,-788.72907753,9.11e-05,2]
[419169600,1774998545139,-162.28837662,9.11e-05,2]
[419169601,1774998545162,-1220.0,9.398e-05,2]
[419169602,1774998545183,-300.0,9.443e-05,2]
[419169603,1774998545206,-279.95918376,9.444e-05,2]
[419169604,1774998545230,-250.0,9.444e-05,2]
[419169605,1774998545251,-5000.0,9.444e-05,2]
[419169606,1774998545273,-2328.02,9.447e-05,2]
[419169607,1774998545295,-1200.0,9.648e-05,2]
[419169608,1774998545318,-2328.02,9.785e-05,2]
[419169609,1774998545340,-150.0,0.000101,2]
[419169610,1774998545362,-2328.02,0.00010122,2]
[419169611,1774998545385,-499.98,0.00010241,2]
[419169612,1774998545407,-2328.02,0.0001046,2]
[419169613,1774998545431,-19312.05514711,0.00010597,2]
[419169614,1774998547124,-500.0,9.45e-05,2]
[419169615,1774998547145,-832.23329004,9.998e-05,2]
[419169616,1774998553305,601.0194143,9.45e-05,2]
[419169617,1774998559100,-109959.33815289,0.00010597,2]
[419169618,1774998559122,-1355.0,0.00010613,2]
[419169619,1774998559145,-500.0,0.00010696,2]
[419169620,1774998559165,-152.29764449,0.00010696,2]
[419169621,1774998559188,-225.01040752,0.00010696,2]
[419169622,1774998559210,-637.2180584,0.00010696,2]
[419169623,1774998559230,-338.26377217,0.00010696,2]
[419169624,1774998559251,-500.0,0.00010696,2]
[419169625,1774998559273,-500.0,0.00010696,2]
[419169626,1774998559293,-392.38607579,0.00010696,2]
[419169627,1774998559314,-500.0,0.00010696,2]
[419169628,1774998559334,-500.0,0.00010696,2]
[419169629,1774998559356,-500.0,0.00010696,2]
[419169630,1774998559376,-500.0,0.00010696,2]
[419169631,1774998559396,-516.15736083,0.00010696,2]
[419169632,1774998559418,-500.0,0.00010696,2]
[419169633,1774998559438,-500.0,0.00010696,2]
[419169634,1774998559460,-429.30919449,0.00010696,2]
[419169635,1774998559479,-500.0,0.00010696,2]
[419169636,1774998559499,-228.97542893,0.00010696,2]
[419169637,1774998559520,-175.19916711,0.00010696,2]
[419169638,1774998559542,-500.0,0.00010696,2]
[419169639,1774998559563,-299.5503286,0.00010696,2]
[419169640,1774998559583,-165.14278835,0.00010696,2]
[419169641,1774998559609,-534.98650271,0.00010696,2]
[419169642,1774998559635,-534.98650271,0.00010696,2]
[419169643,1774998559662,-534.98650271,0.00010696,2]
[419169644,1774998559689,-534.98650271,0.00010696,2]
[419169645,1774998559719,-534.98650271,0.00010696,2]
[419169646,1774998559743,-258542.62930688,0.00010697,2]
[419169647,1774998609411,3819.75607557,9.5e-05,3]
[419169648,1774998630325,251.4582,0.000137,12]
[419169663,1774998631692,-25980.50548091,9.5e-05,3]
[419169664,1774998631705,-153758.22612342,9.5e-05,3]
[419169665,1774998631717,-2940.76056882,9.5e-05,3]
[419169666,1774998631729,-6026.57514731,9.5e-05,3]
[419169668,1774998631884,-3255.16,9.5e-05,3]
[419169715,1774998637652,-559.68523002,9.499e-05,2]
[419169716,1774998637661,-500.0,9.499e-05,2]
[419169717,1774998637670,-311.80145851,9.499e-05,2]
[419169718,1774998637679,-157.50728527,9.499e-05,2]
[419169719,1774998637689,-500.0,9.499e-05,2]
[419169720,1774998637699,-58735.6713582,9.5e-05,3]
[419169721,1774998637762,-187196.27689127,9.5e-05,3]
[419169722,1774998637772,-5685.39574903,0.0001,2]
[419169723,1774998637782,-300.0,0.00010695,2]
[419169724,1774998637791,-500.0,0.00010696,2]
[419169725,1774998637801,-2241457.37069312,0.00010697,2]
[419169726,1774998637811,-180.0,0.00010697,3]
[419169727,1774998637820,-160.0,0.00010697,3]
[419169728,1774998637830,-2328.02,0.00010797,2]
[419169729,1774998637839,-150.0,0.000108,2]
[419169730,1774998637849,-1899.0,0.00010888,2]
[419169731,1774998637859,-1623.72811749,0.000109,2]
[419169732,1774998637869,-206.0,0.00010909,2]
[419169733,1774998637878,-500.0,0.0001097,2]
[419169734,1774998637888,-500.0,0.00011032,2]
[419169735,1774998637897,-1601.73,0.0001105,2]
[419169736,1774998637907,-2328.02,0.00011134,2]
[419169737,1774998637918,-151.0,0.00011263,2]
[419169738,1774998637929,-151.0,0.00011263,2]
[419169739,1774998637938,-174.54957298,0.00011263,2]
[419169740,1774998637947,-151.0,0.00011263,2]
[419169741,1774998637957,-151.0,0.00011263,2]
[419169742,1774998637966,-151.0,0.00011263,2]
[419169743,1774998637975,-3659.47,0.0001127,2]
[419169744,1774998637988,-1527.86,0.0001127,2]
[419169745,1774998637999,-461.47,0.00011275,2]
[419169746,1774998638010,-2328.02,0.00011472,2]
[419169747,1774998638020,-1869.0,0.00011507,2]
[419169749,1774998638029,-420.0,0.00011756,2]
[419169751,1774998638038,-708.33507109,0.00011765,2]
[419169752,1774998638048,-2328.02,0.00011809,2]
[419169753,1774998638058,-500.0,0.0001185,2]
[419169754,1774998638068,-2328.02,0.00012147,2]
[419169755,1774998638077,-153.76,0.00012293,2]
[419169756,1774998638088,-194.2131,0.000123,7]
[419169757,1774998638098,-1623.72811743,0.00012477,2]
[419169758,1774998638108,-2328.02,0.00012484,2]
[419169759,1774998638117,-2328.02,0.00012821,2]
[419169760,1774998638127,-587.0,0.00012923,2]
[419169762,1774998638136,-166.0,0.00013096,2]
[419169764,1774998638145,-502.0,0.00013111,2]
[419169766,1774998638155,-693.467787,0.00013299,2]
[419169768,1774998638165,-507.82732743,0.00013388,2]
[419169770,1774998638175,-2141.2202214,0.00013473,2]
[419169771,1774998638184,-1136.0,0.00013603,5]
[419169773,1774998638194,-500.0,0.00013698,2]
[419169774,1774998638203,-200.0,0.00013699,2]
[419169775,1774998638214,-357.2823536,0.00013699,2]
[419169776,1774998638224,-157.61,0.00013699,2]
[419169777,1774998638234,-1000.0,0.000138,2]
[419169778,1774998638244,-502.0,0.0001408,2]
[419169779,1774998638254,-5792.22737392,0.00014149,2]
[419169780,1774998638264,-823.0,0.00014205,2]
[419169781,1774998638273,-1623.72811743,0.00014356,2]
[419169782,1774998638283,-1410.0,0.00014468,5]
[419169783,1774998638295,-2000.0,0.000145,2]
[419169784,1774998638306,-779.0,0.000147,2]
[419169785,1774998638317,-1000.0,0.000147,2]
[419169786,1774998638328,-1795.741,0.00014739,2]
[419169787,1774998638337,-167.379,0.00014739,2]
[419169788,1774998638348,-1852.42,0.00014906,2]
[419169789,1774998638359,-502.0,0.0001505,3]
[419169790,1774998638369,-500.0,0.00015056,2]
[419169791,1774998638378,-1000.0,0.00015056,2]
[419169792,1774998638387,-542.17,0.00015186,2]
[419169793,1774998638397,-325.5766,0.000152,17]
[419169794,1774998638406,-9999.99,0.0001531,2]
[419169795,1774998638415,-150.99,0.0001531,2]
[419169796,1774998638424,-7604.97,0.0001531,2]
[419169797,1774998638434,-506.01,0.00015507,2]
[419169798,1774998638443,-395.19,0.00015546,2]
[419169799,1774998638452,-1152.0,0.00015615,2]
[419169800,1774998638462,-2469.0,0.00015621,2]
[419169801,1774998638471,-2952.112,0.00015621,2]
[419169802,1774998638480,-222.59,0.00015655,30]
[419169803,1774998638489,-423.71407767,0.0001568,2]
[419169804,1774998638499,-259.231619,0.0001568,7]
[419169805,1774998638508,-506.01,0.00015895,2]
[419169806,1774998638517,-3077.29293325,0.00015899,2]
[419169807,1774998638527,-762.39396078,0.0001597,2]
[419169808,1774998638537,-1587.15799433,0.0001597,2]
[419169809,1774998638546,-222.96972885,0.00015973,2]
[419169810,1774998638556,-500.40303914,0.00015973,2]
[419169811,1774998638566,-666.0,0.00015999,2]
[419169812,1774998638576,-8167.8989597,0.00015999,2]
[419169813,1774998638586,-300.0,0.00015999,2]
[419169814,1774998638596,-2821.4310295,0.00015999,2]
[419169815,1774998638606,-155.341,0.00015999,2]
[419169816,1774998638616,-250.0,0.00015999,2]
[419169817,1774998638626,-3163357.15815821,0.00016,2]
[419169818,1774998638635,-150.0,0.00016,2]
[419169819,1774998638653,-11662.81819707,0.00016,2]
[419169820,1774998638664,-150.0,0.00016,2]
[419169821,1774998638675,-70535.40373526,0.00016,2]
[419169822,1774998638685,-250.0,0.00016,2]
[419169823,1774998638695,-250.0,0.00016,2]
[419169824,1774998638706,-350.0,0.00016,2]
[419169825,1774998638716,-151.0,0.00016,2]
[419169826,1774998638726,-151.0,0.00016,2]
[419169827,1774998638736,-151.0,0.00016,2]
[419169828,1774998638747,-151.0,0.00016,2]
[419169829,1774998638756,-151.72205981,0.00016,2]
[419169830,1774998638766,-200.0,0.00016,2]
[419169831,1774998638776,-1224870.60858414,0.00016,2]
[419169832,1774998638790,-3216.5170958,0.00016,2]
[419169833,1774998638802,-1202.70522161,0.00016,2]
[419169834,1774998638835,-793770.99023179,0.00016,2]
[419169835,1774998638846,-410.03200002,0.00016,2]
[419169836,1774998638859,-3907.099965,0.00016,2]
[419169837,1774998638870,-640.93868497,0.00016,2]
[419169838,1774998638882,-453.00898369,0.00016,2]
[419169839,1774998639967,-279.30287436,0.0001,2]
[419169840,1774998639977,-1357.99078211,0.00010696,2]
[419169841,1774998639988,-552.82816131,0.00016,2]
[419169842,1774998640020,-2183.52560609,0.00016,2]
[419169843,1774998640077,-3250.0,0.00016,2]
[419169844,1774998640649,-497.813004,0.00016,2]
[419169845,1774998640703,-19999.755009,0.00016,2]
[419169846,1774998640761,-1739.2125644,0.00016,2]
[419169882,1774998646007,-241.68879635,9.499e-05,2]
[419169883,1774998646016,-192.10838099,9.499e-05,2]
[419169884,1774998646026,-224.01748454,9.499e-05,2]
[419169885,1774998646036,-1081.27399975,0.00011099,2]
[419169886,1774998646045,-2262.75684154,0.00015642,2]
[419169887,1774998646057,-325.0,0.00015642,2]
[419169888,1774998646068,-1179.24315846,0.00015642,2]
[419169894,1774998646449,-282.47605178,0.0001568,2]
[419169895,1774998646463,-150.6153884,0.000159,2]
[419169896,1774998646472,-5579.18047473,0.00016,2]
[419169897,1774998646488,-9701.32720972,0.00016,2]
[419169898,1774998646499,-2600.0,0.00016,2]
[419169900,1774998646513,-16394.0,0.00016,2]
[419169905,1774998646558,-3483.76973845,0.00016,2]
[419169919,1774999124415,500.0,0.00013398,10]
[419169920,1774999124671,500.0,0.00013398,11]
[419169921,1774999124894,500.0,0.00013398,12]
[419169922,1774999125159,500.0,0.00013398,13]
[419169923,1774999125384,500.0,0.00013398,14]
[419169924,1774999125639,500.0,0.00013398,15]
[419169928,1774999639316,-236.73,8.67e-05,2]
[419169929,1774999639338,-464.97,9.019e-05,2]
[419169930,1774999639359,-333.70178366,9.254e-05,2]
[419169932,1774999747509,-296.33,8.887e-05,2]
[419169933,1774999747530,-478.08821634,9.254e-05,2]
[419169934,1774999747550,-180.29517447,9.518e-05,2]
[419169935,1774999747571,-234.08601707,9.518e-05,2]
[419169936,1774999747592,-169.09058318,9.518e-05,2]
[419169937,1774999747611,-150.0,9.518e-05,2]
[419169938,1774999747632,-185.99177959,9.518e-05,2]
[419169939,1774999747651,-172.5819429,9.518e-05,2]
[419169940,1774999747672,-700.0,9.892e-05,2]
[419169941,1774999747691,-1500.0,9.913e-05,2]
[419169942,1774999747713,-172.58194289,9.957e-05,2]
[419169943,1774999747733,-2000.0,0.00010162,2]
[419169944,1774999749134,-924.0,0.00010322,2]
[419169945,1774999749157,-924.0,0.00010322,2]
[419169946,1774999749177,-500.0,0.00010322,2]
[419169947,1774999749198,-924.0,0.00010322,2]
[419169948,1774999749219,-528.23221251,0.00010322,2]
[419169949,1774999749239,-924.0,0.00010322,2]
[419169950,1774999749261,-924.0,0.00010322,2]
[419169951,1774999749281,-924.0,0.00010322,2]
[419169952,1774999749302,-924.0,0.00010322,2]
[419169953,1774999749323,-924.0,0.00010322,2]
[419169954,1774999749346,-924.0,0.00010322,2]
[419169955,1774999749367,-847.19546749,0.00010322,2]
[419169958,1774999832185,-1200.0,0.00010321,2]
[419169959,1774999832194,-300.0,0.00010321,2]
[419169960,1774999832203,-150.0,0.00010321,2]
[419169961,1774999832212,-300.0,0.00010321,2]
[419169962,1774999832231,-76.80453251,0.00010322,2]
[419169963,1774999832242,-924.0,0.00010322,2]
[419169964,1774999832251,-924.0,0.00010322,2]
[419169965,1774999832261,-924.0,0.00010322,2]
[419169966,1774999832271,-924.0,0.00010322,2]
[419169967,1774999832280,-924.0,0.00010322,2]
[419169968,1774999832292,-924.0,0.00010322,2]
[419169969,1774999832303,-924.0,0.00010322,2]
[419169970,1774999832315,-924.0,0.00010322,2]
[419169971,1774999832324,-924.0,0.00010322,2]
[419169972,1774999832335,-924.0,0.00010322,2]
[419169973,1774999832345,-924.0,0.00010322,2]
[419169974,1774999832356,-924.0,0.00010322,2]
[419169975,1774999832366,-924.0,0.00010322,2]
[419169976,1774999832376,-924.29149207,0.00010322,2]
[419169977,1774999832385,-17001.16,0.0001041,2]
[419169978,1774999832395,-177.01,0.00010472,2]
[419169979,1774999832404,-1323.0,0.0001049,2]
[419169980,1774999832415,-172.58194289,0.00010496,2]
[419169981,1774999832424,-367.9537866,0.00010497,2]
[419169982,1774999832435,-711.0,0.00010511,2]
[419169984,1774999832447,-693.467787,0.00010559,2]
[419169987,1774999832484,-227.02109222,0.00010559,2]
[419169990,1774999832503,-2549.948,0.00010572,2]
[419169993,1774999832524,-221.716,0.00010572,2]
[419169996,1774999832545,-500.0,0.00010573,2]
[419169997,1774999832567,-500.0,0.00010573,2]
[419169998,1774999832587,-500.0,0.00010573,2]
[419169999,1774999832602,-500.0,0.00010573,2]
[419170000,1774999832618,-500.0,0.00010573,2]
[419170001,1774999832637,-500.0,0.00010573,2]
[419170002,1774999832658,-166.05357121,0.00010573,2]
[419170003,1774999832678,-500.0,0.00010573,2]
[419170004,1774999832696,-500.0,0.00010573,2]
[419170005,1774999832714,-500.0,0.00010573,2]
[419170006,1774999832734,-314.9286845,0.00010573,2]
[419170007,1774999832756,-500.0,0.00010573,2]
[419170008,1774999832773,-500.0,0.00010573,2]
[419170009,1774999832788,-166.0,0.00010575,2]
[419170010,1774999832857,-278.24562508,0.00010587,2]
[419170011,1774999832880,-713.69,0.0001059,2]
[419170012,1774999832901,-200.0,0.00010591,2]
[419170013,1774999832922,-151.0,0.00010591,2]
[419170014,1774999832941,-151.0,0.00010591,2]
[419170015,1774999832960,-151.0,0.00010591,2]
[419170016,1774999832979,-151.0,0.00010591,2]
[419170017,1774999832998,-151.0,0.00010591,2]
[419170018,1774999833017,-151.0,0.00010591,2]
[419170019,1774999833036,-1199.20597015,0.00010591,2]
[419170020,1774999833052,-267.40193029,0.00010591,2]
[419170021,1774999833069,-500.0,0.00010595,2]
[419170022,1774999833087,-500.0,0.00010595,2]
[419170023,1774999833103,-500.0,0.00010595,2]
[419170024,1774999833119,-500.0,0.00010595,2]
[419170025,1774999833146,-500.0,0.00010595,2]
[419170026,1774999833166,-265.93591731,0.00010595,2]
[419170027,1774999833186,-348.28195184,0.00010595,2]
[419170028,1774999833205,-249.33728936,0.00010595,2]
[419170029,1774999833227,-500.0,0.00010595,2]
[419170030,1774999833246,-500.0,0.00010595,2]
[419170031,1774999833267,-210.05849226,0.00010595,2]
[419170032,1774999833285,-810.41839489,0.00010595,2]
[419170033,1774999833303,-810.41839489,0.00010595,2]
[419170034,1774999833323,-810.41839489,0.00010595,2]
[419170035,1774999833341,-810.41839489,0.00010595,2]
[419170036,1774999833357,-810.41839489,0.00010595,2]
[419170037,1774999833375,-810.41839489,0.00010595,2]
[419170038,1774999833391,-810.41839489,0.00010595,2]
[419170039,1774999833408,-810.41839489,0.00010595,2]
[419170040,1774999833425,-810.41839489,0.00010595,2]
[419170041,1774999833443,-810.41839489,0.00010595,2]
[419170042,1774999833459,-810.41839489,0.00010595,2]
[419170043,1774999833474,-810.41839489,0.00010595,2]
[419170044,1774999833488,-810.41839489,0.00010595,2]
[419170045,1774999833503,-810.41839489,0.00010595,2]
[419170046,1774999833520,-810.41839489,0.00010595,2]
[419170047,1774999833535,-810.41839489,0.00010595,2]
[419170048,1774999833550,-810.41839489,0.00010595,2]
[419170049,1774999833566,-810.41839489,0.00010595,2]
[419170050,1774999833584,-810.41839489,0.00010595,2]
[419170051,1774999833600,-810.41839489,0.00010595,2]
[419170052,1774999833618,-810.41839489,0.00010595,2]
[419170053,1774999833632,-810.41839489,0.00010595,2]
[419170054,1774999833648,-810.41839489,0.00010595,2]
[419170055,1774999833663,-810.41839489,0.00010595,2]
[419170056,1774999833678,-810.41839489,0.00010595,2]
[419170057,1774999833693,-810.41839489,0.00010595,2]
[419170058,1774999833710,-810.41839489,0.00010595,2]
[419170059,1774999833726,-810.41839489,0.00010595,2]
[419170060,1774999833740,-810.41839489,0.00010595,2]
[419170061,1774999833755,-810.41839489,0.00010595,2]
[419170062,1774999833769,-810.41839489,0.00010595,2]
[419170063,1774999833785,-810.41839489,0.00010595,2]
[419170064,1774999833801,-810.41839489,0.00010595,2]
[419170065,1774999833817,-810.41839489,0.00010595,2]
[419170066,1774999833832,-810.41839489,0.00010595,2]
[419170067,1774999833847,-810.41839489,0.00010595,2]
[419170068,1774999833862,-810.41839489,0.00010595,2]
[419170069,1774999833877,-810.41839489,0.00010595,2]
[419170070,1774999833893,-810.41839489,0.00010595,2]
[419170071,1774999833907,-810.41839489,0.00010595,2]
[419170072,1774999833922,-810.41839489,0.00010595,2]
[419170073,1774999833937,-810.41839489,0.00010595,2]
[419170074,1774999833953,-810.41839489,0.00010595,2]
[419170075,1774999833968,-810.41839489,0.00010595,2]
[419170076,1774999833981,-810.41839489,0.00010595,2]
[419170077,1774999833997,-810.41839489,0.00010595,2]
[419170078,1774999834012,-810.41839489,0.00010595,2]
[419170079,1774999834027,-810.41839489,0.00010595,2]
[419170080,1774999834041,-810.41839489,0.00010595,2]
[419170081,1774999834056,-810.41839489,0.00010595,2]
[419170082,1774999834071,-810.41839489,0.00010595,2]
[419170083,1774999834085,-810.41839489,0.00010595,2]
[419170084,1774999834101,-810.41839489,0.00010595,2]
[419170085,1774999834115,-810.41839489,0.00010595,2]
[419170086,1774999834130,-810.41839489,0.00010595,2]
[419170087,1774999834145,-810.41839489,0.00010595,2]
[419170088,1774999834160,-810.41839489,0.00010595,2]
[419170089,1774999834175,-810.41839489,0.00010595,2]
[419170090,1774999834201,-810.41839489,0.00010595,2]
[419170091,1774999834223,-810.41839489,0.00010595,2]
[419170092,1774999834245,-810.41839489,0.00010595,2]
[419170093,1774999834265,-788.07352555,0.00010595,2]
[419170094,1774999834284,-788.07352555,0.00010595,2]
[419170095,1774999834303,-788.07352555,0.00010595,2]
[419170096,1774999834321,-788.07352555,0.00010595,2]
[419170097,1774999834338,-788.07352555,0.00010595,2]
[419170098,1774999834358,-788.07352555,0.00010595,2]
[419170099,1774999834375,-788.07352555,0.00010595,2]
[419170100,1774999834393,-788.07352555,0.00010595,2]
[419170101,1774999834411,-788.07352555,0.00010595,2]
[419170102,1774999834428,-788.07352555,0.00010595,2]
[419170103,1774999834444,-788.07352555,0.00010595,2]
[419170104,1774999834460,-788.07352555,0.00010595,2]
[419170105,1774999834477,-788.07352555,0.00010595,2]
[419170106,1774999834494,-788.07352555,0.00010595,2]
[419170107,1774999834510,-788.07352555,0.00010595,2]
[419170108,1774999834526,-788.07352555,0.00010595,2]
[419170109,1774999834543,-788.07352555,0.00010595,2]
[419170110,1774999834559,-788.07352555,0.00010595,2]
[419170111,1774999834573,-788.07352555,0.00010595,2]
[419170112,1774999834589,-788.07352555,0.00010595,2]
[419170113,1774999834603,-788.07352555,0.00010595,2]
[419170114,1774999834620,-788.07352555,0.00010595,2]
[419170115,1774999834636,-788.07352555,0.00010595,2]
[419170116,1774999834651,-788.07352555,0.00010595,2]
[419170117,1774999834669,-788.07352555,0.00010595,2]
[419170118,1774999834685,-788.07352555,0.00010595,2]
[419170119,1774999834701,-788.07352555,0.00010595,2]
[419170120,1774999834715,-500.0,0.00010596,2]
[419170121,1774999834730,-500.0,0.00010596,2]
[419170122,1774999834744,-500.0,0.00010596,2]
[419170123,1774999834759,-317.19840897,0.00010596,2]